Workbook

Sheet PVPC
A1: Hora | B1: 14/06 | C1: 15/06 | D1: 16/06 | E1: 17/06 | F1: 18/06 | G1: 19/06 | H1: 20/06
A2: 1 | B2: 266.95 | C2: 311.85 | D2: 351.79 | E2: 366.15 | F2: 382.47 | G2: 322.01 | H2: 389.8
A3: 2 | B3: 266.34 | C3: 310.04 | D3: 327.79 | E3: 362.99 | F3: 349.78 | G3: 311.57 | H3: 392.63
A4: 3 | B4: 254.41 | C4: 309.45 | D4: 325.78 | E4: 357.71 | F4: 340.4 | G4: 304.47 | H4: 400.82
A5: 4 | B5: 249.73 | C5: 308.39 | D5: 329.18 | E5: 356.93 | F5: 341.76 | G5: 296.16 | H5: 405.91
A6: 5 | B6: 244.74 | C6: 309.25 | D6: 333.76 | E6: 359.79 | F6: 345.85 | G6: 274.58 | H6: 408.32
A7: 6 | B7: 248.96 | C7: 317.24 | D7: 343.87 | E7: 357.71 | F7: 343.84 | G7: 257.95 | H7: 394.56
A8: 7 | B8: 261.12 | C8: 306.79 | D8: 337.22 | E8: 351.59 | F8: 333.59 | G8: 259.74 | H8: 377.08
A9: 8 | B9: 274.29 | C9: 301.17 | D9: 350.95 | E9: 352.26 | F9: 318.78 | G9: 259.43 | H9: 374.73
A10: 9 | B10: 300.68 | C10: 318.53 | D10: 365.2 | E10: 361.21 | F10: 273.88 | G10: 234.59 | H10: 382.65
A11: 10 | B11: 291.95 | C11: 293.99 | D11: 327.58 | E11: 344.42 | F11: 249.12 | G11: 201.14 | H11: 349.03
A12: 11 | B12: 332.44 | C12: 323.21 | D12: 366.39 | E12: 381.12 | F12: 248.11 | G12: 164.99 | H12: 380.44
A13: 12 | B13: 317.75 | C13: 318.03 | D13: 354.13 | E13: 368.45 | F13: 223.01 | G13: 150.8 | H13: 346.4
A14: 13 | B14: 313.79 | C14: 318.49 | D14: 351.11 | E14: 365.07 | F14: 200.13 | G14: 146.69 | H14: 333.98
A15: 14 | B15: 313.36 | C15: 319.3 | D15: 351.57 | E15: 360.42 | F15: 192.8 | G15: 145.94 | H15: 312.4
A16: 15 | B16: 265.42 | C16: 267.74 | D16: 294.85 | E16: 296.38 | F16: 176.32 | G16: 139 | H16: 252.6
A17: 16 | B17: 258.4 | C17: 257.79 | D17: 297.18 | E17: 295.38 | F17: 169.65 | G17: 120.93 | H17: 243.5
A18: 17 | B18: 268.77 | C18: 261.46 | D18: 298.73 | E18: 295.86 | F18: 164.59 | G18: 104.71 | H18: 235.21
A19: 18 | B19: 271.23 | C19: 260.72 | D19: 310.6 | E19: 299.3 | F19: 167.43 | G19: 130.53 | H19: 243.75 | J19: AUTOR: | K19: #ExcelPedroWave
A20: 19 | B20: 325.92 | C20: 309.83 | D20: 362.85 | E20: 359.1 | F20: 178.45 | G20: 163.73 | H20: 302.24 | J20: BLOG: | K20: Comparador interactivo con gráficos escalonados | #ExcelPedroWave
A21: 20 | B21: 340.65 | C21: 328.61 | D21: 405 | E21: 387.79 | F21: 206.71 | G21: 204.77 | H21: 332.24 | J21: COPYRIGHT: | K21: Creative Commons — Atribución-NoComercial-CompartirIgual 3.0 No portada
A22: 21 | B22: 361.8 | C22: 356.12 | D22: 418.49 | E22: 410.82 | F22: 256.64 | G22: 281.14 | H22: 382.49
A23: 22 | B23: 366.25 | C23: 358.24 | D23: 428.98 | E23: 423.98 | F23: 286.58 | G23: 332.16 | H23: 412.94
A24: 23 | B24: 309.93 | C24: 309.05 | D24: 384.98 | E24: 380.13 | F24: 304.92 | G24: 384.06 | H24: 384.52
A25: 24 | B25: 292.87 | C25: 282.86 | D25: 379.63 | E25: 372.88 | F25: 293.12 | G25: 376.31 | H25: 372.82
A26: Promedio | B26: =SUBTOTAL(101,TablaEscalones[14/06]) -> 291.5729167 | C26: =SUBTOTAL(101,TablaEscalones[15/06]) -> 306.5895833 | D26: =SUBTOTAL(101,TablaEscalones[16/06]) -> 349.9004167 | E26: =SUBTOTAL(101,TablaEscalones[17/06]) -> 356.9766667 | F26: =SUBTOTAL(101,TablaEscalones[18/06]) -> 264.4970833 | G26: =SUBTOTAL(101,TablaEscalones[19/06]) -> 231.975 | H26: =SUBTOTAL(101,TablaEscalones[20/06]) -> 350.4608333
A27: Máximo | B27: =SUBTOTAL(104,TablaEscalones[14/06]) -> 366.25 | C27: =SUBTOTAL(104,TablaEscalones[15/06]) -> 358.24 | D27: =SUBTOTAL(104,TablaEscalones[16/06]) -> 428.98 | E27: =SUBTOTAL(104,TablaEscalones[17/06]) -> 423.98 | F27: =SUBTOTAL(104,TablaEscalones[18/06]) -> 382.47 | G27: =SUBTOTAL(104,TablaEscalones[19/06]) -> 384.06 | H27: =SUBTOTAL(104,TablaEscalones[20/06]) -> 412.94
A28: Mínimo | B28: =SUBTOTAL(105,TablaEscalones[14/06]) -> 244.74 | C28: =SUBTOTAL(105,TablaEscalones[15/06]) -> 257.79 | D28: =SUBTOTAL(105,TablaEscalones[16/06]) -> 294.85 | E28: =SUBTOTAL(105,TablaEscalones[17/06]) -> 295.38 | F28: =SUBTOTAL(105,TablaEscalones[18/06]) -> 164.59 | G28: =SUBTOTAL(105,TablaEscalones[19/06]) -> 104.71 | H28: =SUBTOTAL(105,TablaEscalones[20/06]) -> 235.21
A29: Leyenda (promedio) | B29: =B1 & IFERROR(" (" & ROUND(B26,0) & ")","") -> 14/06 (292) | C29: =C1 & IFERROR(" (" & ROUND(C26,0) & ")","") -> 15/06 (307) | D29: 16/06 (350) | E29: 17/06 (357) | F29: 18/06 (264) | G29: 19/06 (232) | H29: 20/06 (350)
A31: Fechas | B31: Mínimo
A32: =DATEVALUE(TablaEscalones[[#Headers],[14/06]]) -> 2022-06-14 | B32: =B28 -> 244.74
A33: =DATEVALUE(TablaEscalones[[#Headers],[15/06]]) -> 2022-06-15 | B33: =C28 -> 257.79
A34: =DATEVALUE(TablaEscalones[[#Headers],[16/06]]) -> 2022-06-16 | B34: =D28 -> 294.85
A35: =DATEVALUE(TablaEscalones[[#Headers],[17/06]]) -> 2022-06-17 | B35: =E28 -> 295.38
A36: =DATEVALUE(TablaEscalones[[#Headers],[18/06]]) -> 2022-06-18 | B36: =F28 -> 164.59
A37: =DATEVALUE(TablaEscalones[[#Headers],[19/06]]) -> 2022-06-19 | B37: =G28 -> 104.71
A38: =DATEVALUE(TablaEscalones[[#Headers],[20/06]]) -> 2022-06-20 | B38: =H28 -> 235.21
A39: =SUBTOTAL(103,TablaFechas[Fechas]) -> 7 | B39: =MIN(TablaFechas[Mínimo]) -> 104.71
A42: Mín. eje | C42: Mínimo valor eje vertical: | D42: =ROUNDDOWN(SUBTOTAL(105,TablaFechas[Mínimo])/50,0)*50 -> 100
A43: =miPVPCmín -> 100
A44: =IF(A43=0,0,A43-50) -> 50
A45: =IF(A44=0,0,A44-50) -> 0
A46: 0
A47: 0
A48: 0
A49: 0
A50: =SUBTOTAL(104,TablaMínEjeVertical[Mín. eje]) -> 100
